bitfinex-derivatives/quotes_ETHF0:USTF0_20260119
["timestamp","ask_amount","ask_price","bid_price","bid_amount"]
[1768816983111,0.00340163,3207.2,3206.7,0.15602]
[1768816983316,0.00467508,3207.5,3206.8,0.13552376]
[1768816983616,0.00467508,3207.5,3206.7,0.15602]
[1768816984213,0.0080435,3207.5,3206.7,0.15602]
[1768816986514,0.0080435,3207.5,3206.7,0.29154376]
[1768816987108,1.67213026,3208.4,3207.0,0.13552376]
[1768816987410,1.67213026,3208.4,3207.0,0.29152376]
[1768816988010,1.67512719,3208.4,3207.1,0.156]
[1768816988210,0.96920059,3208.3,3207.1,0.156]
[1768816988410,0.96920059,3208.2,3207.1,0.156]
[1768816988611,0.96920059,3208.1,3207.1,0.156]
[1768816988812,0.96920059,3208.0,3207.1,0.156]
[1768816989011,0.96920059,3207.9,3207.1,0.156]
[1768816989212,0.00299693,3208.4,3207.1,0.156]
[1768816989413,0.96856169,3208.3,3207.1,0.156]
[1768816989617,0.96856169,3208.2,3207.1,0.156]
[1768816989919,0.96856169,3208.1,3207.1,0.156]
[1768816990113,0.96856169,3208.0,3207.1,0.156]
[1768816990318,0.00299693,3208.4,3207.1,0.156]
[1768816990524,0.96840349,3208.3,3207.1,0.156]
[1768816990719,0.96840349,3208.2,3207.1,0.156]
[1768816990920,0.96840349,3208.1,3207.1,0.156]
[1768816991115,0.96840349,3208.0,3207.1,0.156]
[1768816991314,0.00299693,3208.4,3207.1,0.29152376]
[1768816991621,0.96863831,3208.3,3207.1,0.29152376]
[1768816991822,0.96863831,3208.2,3207.1,0.29152376]
[1768816992016,0.96863831,3208.1,3207.1,0.29152376]
[1768816992214,0.00299693,3208.4,3207.1,0.29152376]
[1768816992421,0.96852796,3208.3,3207.1,0.29152376]
[1768816992619,0.96852796,3208.2,3207.1,0.29152376]
[1768816992811,0.96852796,3208.1,3207.1,0.29152376]
[1768816993011,0.00299693,3208.4,3207.1,0.29152376]
[1768816993212,0.96840643,3208.3,3207.1,0.29152376]
[1768816993413,0.96840643,3208.2,3207.1,0.29152376]
[1768816993613,0.96840643,3208.1,3207.1,0.29152376]
[1768816993819,0.00299693,3208.4,3207.1,0.29152376]
[1768816994020,0.96825091,3208.3,3207.1,0.29152376]
[1768816994324,0.96825091,3208.2,3207.1,0.29152376]
[1768816994513,0.96825091,3208.1,3207.1,0.29152376]
[1768816994717,0.00299693,3208.4,3207.1,0.29152376]
[1768816994913,0.96816324,3208.3,3207.1,0.29152376]
[1768816995115,0.96816324,3208.2,3207.1,0.29152376]
[1768816995316,0.00299693,3208.4,3207.2,0.13552376]
[1768816995618,0.9680461,3208.3,3207.2,0.13552376]
[1768816995819,0.9680461,3208.2,3207.2,0.13552376]
[1768816996021,0.00299693,3208.4,3207.2,0.13552376]
[1768816996214,0.96793357,3208.3,3207.2,0.13552376]
[1768816996520,0.96793357,3208.2,3207.2,0.13552376]
[1768816996724,0.00299693,3208.4,3207.2,0.13552376]
[1768816996912,0.9678873,3208.3,3207.2,0.13552376]
[1768816997112,0.9678873,3208.2,3207.2,0.13552376]
[1768816997328,0.00299693,3208.4,3207.2,0.29152376]
[1768816997513,0.96776278,3208.3,3207.2,0.29152376]
[1768816997716,0.96776278,3208.2,3207.2,0.29152376]
[1768816997925,0.00299693,3208.4,3207.2,0.29152376]
[1768816998120,0.96782655,3208.3,3207.2,0.29152376]
[1768816998421,0.96782655,3208.2,3207.2,0.29152376]
[1768816998623,0.00299693,3208.4,3207.2,0.29152376]
[1768816998818,0.96784735,3208.3,3207.2,0.29152376]
[1768816999120,0.96784735,3208.2,3207.2,0.29152376]
[1768816999322,0.00299693,3208.4,3207.2,0.29152376]
[1768816999514,0.96774513,3208.3,3207.2,0.29152376]
[1768816999715,0.96774513,3208.2,3207.2,0.29152376]
[1768816999917,0.00299693,3208.4,3207.2,0.29152376]
[1768817000116,0.96774595,3208.3,3207.2,0.29152376]
[1768817000316,0.00299693,3208.4,3207.2,0.29152376]
[1768817000516,0.96765301,3208.3,3207.2,0.29152376]
[1768817000723,0.00299693,3208.4,3207.2,0.29152376]
[1768817000929,0.96764852,3208.3,3207.2,0.29152376]
[1768817001120,0.00299693,3208.4,3207.2,0.29152376]
[1768817001323,0.96757838,3208.3,3207.2,0.156]
[1768817001530,0.00299693,3208.4,3207.2,0.156]
[1768817001719,0.96752062,3208.3,3207.2,0.156]
[1768817001925,0.00299693,3208.4,3207.2,0.156]
[1768817002220,0.96734509,3208.3,3207.2,0.156]
[1768817002520,0.00299693,3208.4,3207.2,0.156]
[1768817002729,0.96732258,3208.3,3207.2,0.156]
[1768817002933,0.00299693,3208.4,3207.2,0.156]
[1768817003121,0.96726198,3208.3,3207.2,0.156]
[1768817003423,0.00299693,3208.4,3207.2,0.156]
[1768817003621,0.96726682,3208.3,3207.2,0.156]
[1768817003827,0.00299693,3208.4,3207.2,0.156]
[1768817004022,0.96717642,3208.3,3207.2,0.156]
[1768817004224,0.00299693,3208.4,3207.2,0.156]
[1768817004521,0.96722996,3208.3,3207.2,0.156]
[1768817004721,0.00299693,3208.4,3207.2,0.156]
[1768817004928,0.96723004,3208.3,3207.2,0.156]
[1768817005230,0.00299693,3208.4,3207.2,0.156]
[1768817005527,0.96731127,3208.3,3207.2,0.156]
[1768817005729,0.96731127,3208.2,3207.2,0.156]
[1768817005928,0.00299693,3208.4,3207.2,0.156]
[1768817006228,0.96731202,3208.3,3207.2,0.156]
[1768817006431,0.96731202,3208.2,3207.2,0.156]
[1768817006630,0.00299693,3208.4,3207.2,0.156]
[1768817006820,0.96738678,3208.3,3207.2,0.156]
[1768817007020,0.96738678,3208.2,3207.2,0.156]
[1768817007222,0.00299693,3208.4,3207.2,0.156]
[1768817007423,0.96753649,3208.3,3207.2,0.156]
[1768817007628,0.96753649,3208.2,3207.2,0.156]
[1768817007925,0.00299693,3208.4,3207.2,0.156]
[1768817008120,0.96748916,3208.3,3207.2,0.156]
[1768817008328,0.96748916,3208.2,3207.2,0.156]
[1768817008521,0.96748916,3208.1,3207.2,0.156]
[1768817008722,0.00299693,3208.4,3207.2,0.156]
[1768817008924,0.96766009,3208.3,3207.2,0.29898427]
[1768817009222,0.96766009,3208.2,3207.2,0.29898427]
[1768817009422,0.96766009,3208.1,3207.2,0.29898427]
[1768817009631,0.00299693,3208.4,3207.2,0.29898427]
[1768817009832,0.96786668,3208.3,3207.2,0.29898427]
[1768817010133,0.96786668,3208.2,3207.2,0.29898427]
[1768817010433,0.96786668,3208.1,3207.2,0.29898427]
[1768817010634,0.00299693,3208.4,3207.2,0.29898427]
[1768817010828,0.96790395,3208.3,3207.2,0.29898427]
[1768817011027,0.96790395,3208.2,3207.2,0.29898427]
[1768817011332,0.96790395,3208.1,3207.2,0.29898427]
[1768817011628,0.00299693,3208.4,3207.3,0.14298427]
[1768817011833,0.00299693,3208.4,3207.4,0.14298427]
[1768817011834,0.9622936,3208.3,3207.4,0.14298427]
[1768817012135,0.9622936,3208.2,3207.4,0.14298427]
[1768817012345,0.00299693,3208.4,3207.4,0.14298427]
[1768817012537,0.96275053,3208.3,3207.4,0.14298427]
[1768817012729,0.96275053,3208.2,3207.4,0.14298427]
[1768817013033,0.00299693,3208.4,3207.4,0.14298427]
[1768817013333,0.96304379,3208.3,3207.4,0.14298427]
[1768817013529,0.96304379,3208.2,3207.4,0.14298427]
[1768817013732,0.00299693,3208.4,3207.4,0.14298427]
[1768817013930,0.96315639,3208.3,3207.4,0.14298427]
[1768817014129,0.96315639,3208.2,3207.4,0.14298427]
[1768817014429,0.00299693,3208.4,3207.4,0.14298427]
[1768817014629,0.96330862,3208.3,3207.4,0.14298427]
[1768817014831,0.96330862,3208.2,3207.4,0.14298427]
[1768817015025,0.00299693,3208.4,3207.4,0.14298427]
[1768817015225,0.96355705,3208.3,3207.4,0.14298427]
[1768817015426,0.96355705,3208.2,3207.4,0.14298427]
[1768817015628,0.00299693,3208.4,3207.4,0.14298427]
[1768817015926,0.9635651,3208.3,3207.4,0.14298427]
[1768817016127,0.9635651,3208.2,3207.4,0.29896427]
[1768817016328,0.9635651,3208.1,3207.4,0.29896427]
[1768817016521,0.00299693,3208.4,3207.4,0.29896427]
[1768817016727,0.96392688,3208.3,3207.4,0.29896427]
[1768817016931,0.96392688,3208.2,3207.4,0.29896427]
[1768817017131,0.00299693,3208.4,3207.4,0.29896427]
[1768817017132,0.96392688,3208.1,3207.4,0.29896427]
[1768817017437,0.00299693,3208.4,3207.4,0.29896427]
[1768817017639,0.96403101,3208.3,3207.4,0.29896427]
[1768817017828,0.96403101,3208.2,3207.4,0.29896427]
[1768817018137,0.96403101,3208.1,3207.4,0.29896427]
[1768817018435,0.00299693,3208.4,3207.4,0.29896427]
[1768817018636,0.96404336,3208.3,3207.5,0.14298427]
[1768817018832,0.96404336,3208.2,3207.5,0.14298427]
[1768817019034,0.96404336,3208.1,3207.5,0.14298427]
[1768817019334,0.00299693,3208.4,3207.5,0.14298427]
[1768817019527,0.96410558,3208.3,3207.5,0.14298427]
[1768817019725,0.96410558,3208.2,3207.5,0.14298427]
[1768817019925,0.00299693,3208.4,3207.5,0.14298427]
[1768817020138,0.96410871,3208.3,3207.5,0.14298427]
[1768817020442,0.96410871,3208.2,3207.5,0.14298427]
[1768817020635,0.00299693,3208.4,3207.5,0.14298427]
[1768817020837,0.96409882,3208.3,3207.5,0.14298427]
[1768817021031,0.96409882,3208.2,3207.5,0.14298427]
[1768817021329,0.00299693,3208.4,3207.5,0.14298427]
[1768817021530,0.96409852,3208.3,3207.5,0.14298427]
[1768817021830,0.96409852,3208.2,3207.5,0.14298427]
[1768817022029,0.00299693,3208.4,3207.5,0.14298427]
[1768817022227,0.9640646,3208.3,3207.5,0.14298427]
[1768817022437,0.9640646,3208.2,3207.5,0.14298427]
[1768817022638,0.00299693,3208.4,3207.5,0.14298427]
[1768817022838,0.96406298,3208.3,3207.5,0.14298427]
[1768817023042,0.96406298,3208.2,3207.5,0.14298427]
[1768817023243,0.00299693,3208.4,3207.5,0.14298427]
[1768817023443,0.96404647,3208.3,3207.5,0.14298427]
[1768817023642,0.96404647,3208.2,3207.5,0.14298427]
[1768817023844,0.00299693,3208.4,3207.5,0.14298427]
[1768817024044,0.96404347,3208.3,3207.5,0.14298427]
[1768817024243,0.96404347,3208.2,3207.5,0.14298427]
[1768817024444,0.00299693,3208.4,3207.5,0.14298427]
[1768817024647,0.96402871,3208.3,3207.5,0.14298427]
[1768817024946,0.96402871,3208.2,3207.5,0.14298427]
[1768817025147,0.00299693,3208.4,3207.5,0.14298427]
[1768817025336,0.96400613,3208.3,3207.5,0.14298427]
[1768817025645,0.96400613,3208.2,3207.5,0.14298427]
[1768817025943,0.00299693,3208.4,3207.4,0.15598]
[1768817026144,0.96399992,3208.3,3207.4,0.15598]
[1768817026444,0.96399992,3208.2,3207.4,0.15598]
[1768817026633,0.00299693,3208.4,3207.4,0.15598]
[1768817026834,0.96394759,3208.3,3207.4,0.15598]
[1768817027130,0.96394759,3208.2,3207.4,0.15598]
[1768817027329,0.00299693,3208.4,3207.4,0.15598]
[1768817027533,0.96389986,3208.3,3207.4,0.15598]
[1768817027742,0.96389986,3208.2,3207.4,0.15598]
[1768817027942,0.00299693,3208.4,3207.4,0.15598]
[1768817028143,0.96389967,3208.3,3207.4,0.15598]
[1768817028341,0.96389967,3208.2,3207.4,0.15598]
[1768817028543,0.00299693,3208.4,3207.4,0.15598]
[1768817028737,0.96387958,3208.3,3207.4,0.15598]
[1768817029035,0.96387958,3208.2,3207.4,0.15598]
[1768817029334,0.00299693,3208.4,3207.4,0.15598]
[1768817029531,0.9638631,3208.3,3207.4,0.15598]
[1768817029744,0.9638631,3208.2,3207.4,0.15598]
[1768817029948,0.00299693,3208.4,3207.4,0.15598]
[1768817030134,0.96384697,3208.3,3207.4,0.15598]
[1768817030334,0.96384697,3208.2,3207.4,0.15598]
[1768817030542,0.00299693,3208.4,3207.4,0.15598]
[1768817030743,0.96382777,3208.3,3207.4,0.15598]
[1768817030943,0.96382777,3208.2,3207.4,0.15598]
[1768817031246,0.00299693,3208.4,3207.4,0.15598]
[1768817031549,0.9638111,3208.3,3207.4,0.15598]
[1768817031737,0.9638111,3208.2,3207.4,0.15598]
[1768817031940,0.00299693,3208.4,3207.4,0.15598]
[1768817032143,0.96381,3208.3,3207.4,0.15598]
[1768817032331,0.96381,3208.2,3207.4,0.15598]
[1768817032536,0.00299693,3208.4,3207.4,0.15598]
[1768817032736,0.96380575,3208.3,3207.4,0.15598]
[1768817032944,0.96380575,3208.2,3207.4,0.15598]
[1768817033244,0.00299693,3208.4,3207.4,0.15598]
[1768817033545,0.9638056,3208.3,3207.4,0.15598]
[1768817033743,0.9638056,3208.2,3207.4,0.15598]
[1768817034046,0.00299693,3208.4,3207.4,0.15598]
[1768817034245,0.96381332,3208.3,3207.4,0.15598]
[1768817034446,0.96381332,3208.2,3207.4,0.15598]
[1768817034745,0.00299693,3208.4,3207.4,0.15598]
[1768817034934,0.96381542,3208.3,3207.4,0.15598]
[1768817035139,0.96381542,3208.2,3207.4,0.15598]
[1768817035447,0.00299693,3208.4,3207.4,0.15598]
[1768817035644,0.96382296,3208.3,3207.4,0.15598]
[1768817035846,0.96382296,3208.2,3207.4,0.15598]
[1768817036048,0.00299693,3208.4,3207.4,0.15598]
[1768817036247,0.96383568,3208.3,3207.4,0.15598]
[1768817036447,0.96383568,3208.2,3207.4,0.15598]
[1768817036648,0.00299693,3208.4,3207.4,0.15598]
[1768817036844,0.9638384,3208.3,3207.4,0.15598]
[1768817037042,0.9638384,3208.2,3207.4,0.15598]
[1768817037244,0.00299693,3208.4,3207.4,0.15598]
[1768817037445,0.96389349,3208.3,3207.4,0.15598]
[1768817037748,0.96389349,3208.2,3207.4,0.15598]
[1768817037943,0.00299693,3208.4,3207.4,0.28848838]
[1768817038140,0.96389362,3208.3,3207.5,0.13250838]
[1768817038446,0.00299693,3208.4,3207.5,0.13250838]
[1768817038647,0.00299693,3208.4,3207.6,0.28848838]
[1768817040446,0.00299693,3208.4,3207.8,0.28846838]
[1768817040641,1.67213026,3209.2,3207.8,0.28846838]
[1768817040840,1.67213026,3209.2,3208.0,0.28845838]
[1768817041041,0.96339595,3209.1,3208.0,0.28845838]
[1768817041345,0.96339595,3209.0,3208.0,0.28845838]
[1768817041552,0.96339595,3208.9,3208.0,0.28845838]
[1768817041853,0.96339595,3208.9,3208.1,0.13250838]
[1768817042045,0.00264863,3209.0,3208.2,0.28845838]
[1768817045450,0.00264863,3209.0,3208.2,1.32540949]
[1768817045647,0.00264863,3209.0,3208.3,0.13250838]
[1768817045954,1.03695111,3209.5,3208.3,0.13250838]
[1768817046155,0.96402047,3209.4,3208.3,0.13250838]
[1768817046355,0.96402047,3209.3,3208.3,0.13250838]
[1768817046656,1.03695111,3209.5,3208.3,0.13250838]
[1768817046850,0.96385417,3209.4,3208.5,0.28843838]
[1768817047053,0.00265208,3209.5,3208.5,0.28843838]
[1768817047256,0.96411261,3209.4,3208.5,0.28843838]
[1768817047454,0.00265208,3209.5,3208.5,0.28843838]
[1768817047652,0.9639181,3209.4,3208.5,0.28843838]
[1768817047850,0.00265208,3209.5,3208.5,0.28843838]
[1768817048058,0.96395733,3209.4,3208.6,0.15593]
[1768817048259,0.00265208,3209.5,3208.6,0.15593]
[1768817049652,0.00265208,3209.5,3208.6,0.28843838]
[1768817063685,6.357,3210.4,3208.8,0.13906792]
[1768817063988,1.03695111,3210.5,3209.4,0.13906792]
[1768817064781,1.04044239,3210.5,3209.4,0.14227297]
[1768817065186,1.04044239,3210.5,3209.6,0.00467508]
[1768817065884,1.03695111,3210.3,3209.6,0.00467508]
[1768817066887,1.03695111,3210.1,3209.6,0.00467508]
[1768817067089,1.03695111,3209.9,3209.1,0.1559]
[1768817068187,1.03695111,3209.9,3209.1,0.15885294]
[1768817072791,1.03695111,3209.9,3209.1,0.00295294]
[1768817074994,1.03695111,3209.3,3208.6,0.13906792]
[1768817075492,1.03695111,3209.5,3208.6,0.13906792]
[1768817075690,1.03695111,3209.1,3208.2,0.13906792]
[1768817075892,1.03695111,3209.1,3208.2,0.14181099]
[1768817076082,1.03695111,3209.3,3208.2,0.14181099]
[1768817080398,1.03695111,3209.3,3208.2,0.00274307]
[1768817080694,1.03695111,3209.0,3208.2,0.00274307]
[1768817081700,1.03695111,3209.3,3208.2,0.00274307]
[1768817082402,1.03695111,3209.3,3208.2,0.13835288]
[1768817087806,1.03695111,3209.0,3208.2,0.00274307]
[1768817091210,0.13601172,3209.6,3208.2,0.00274307]
[1768817091410,1.03695111,3209.0,3208.2,0.00274307]
[1768817095926,1.03695111,3209.3,3208.2,0.00274307]
[1768817098522,1.03695111,3209.1,3208.2,0.00274307]
[1768817101721,0.13601172,3209.6,3208.2,0.00274307]
[1768817102020,1.03695111,3210.1,3208.7,0.14319738]
[1768817102410,1.03695111,3210.2,3208.9,0.14319738]
[1768817104330,1.03695111,3210.4,3209.0,1.03695111]
[1768817104625,1.03695111,3210.4,3208.9,0.14319738]
[1768817104925,0.00349128,3210.5,3208.9,0.14319738]
[1768817107825,0.00349128,3210.5,3208.9,0.29910738]
[1768817108017,0.00349128,3210.5,3209.0,0.14319738]
[1768817108220,0.00349128,3210.5,3209.0,0.29910738]
[1768817108520,0.00349128,3210.5,3209.2,0.14319738]
[1768817122339,0.00349128,3210.5,3208.5,0.15593]
[1768817122639,0.00349128,3210.5,3208.7,0.14319738]
[1768817122640,1.04112843,3210.3,3208.7,0.14319738]
[1768817123539,1.03645335,3209.5,3208.3,0.13206577]
[1768817123844,0.13743791,3209.8,3208.3,0.13206577]
[1768817124644,1.19231335,3210.0,3208.3,0.13206577]
[1768817126744,0.13743791,3209.9,3208.3,0.13206577]
[1768817141855,1.17767066,3209.6,3208.2,0.00274307]
[1768817143955,0.14121731,3209.6,3208.2,0.00274307]
[1768817146355,1.17767066,3209.6,3208.2,0.00274307]
[1768817147156,0.14121731,3209.6,3208.2,0.00274307]
[1768817148156,1.19233335,3209.7,3208.2,0.00274307]
[1768817149458,0.15588,3209.7,3208.2,0.14268868]
[1768817150244,6.357,3210.2,3208.2,0.14268868]
[1768817150245,6.357,3210.2,3208.3,0.13994561]
[1768817150450,8.104,3210.2,3208.3,0.13994561]
[1768817150846,6.357,3210.2,3208.3,0.13994561]
[1768817151961,6.51752508,3210.3,3208.3,0.13994561]
[1768817159065,1.03645335,3210.0,3208.3,0.13994561]
[1768817163479,0.29476139,3210.2,3208.3,0.13994561]
[1768817163666,1.746,3210.1,3208.3,0.13994561]
[1768817166567,1.746,3210.0,3208.3,0.13994561]
[1768817166878,1.03678424,3209.7,3208.5,0.13704829]
[1768817167682,2.78278424,3210.0,3208.5,0.13704829]
[1768817167880,1.03678424,3209.6,3208.5,0.13704829]
[1768817171274,1.746,3210.0,3208.5,0.13704829]
[1768817171481,1.03678424,3209.7,3208.5,0.13704829]
[1768817173383,1.03678424,3209.3,3208.2,0.00274307]
[1768817177283,1.03678424,3208.9,3208.2,0.00274307]
[1768817177489,1.03678424,3208.7,3208.2,0.00274307]
[1768817177689,1.03678424,3208.7,3207.7,0.13704829]
[1768817178578,0.00467508,3208.5,3207.7,0.13938837]
[1768817186588,0.00467508,3208.5,3207.7,0.29535837]
[1768817186787,0.00467508,3208.5,3207.8,0.1388193]
[1768817188887,0.00467508,3208.5,3207.7,0.15831008]
[1768817190085,1.03678424,3208.4,3207.7,0.00234008]
[1768817190293,1.03678424,3208.4,3207.4,0.1388193]
[1768817191392,1.03678424,3208.4,3207.4,0.14253579]
[1768817191592,1.03678424,3208.2,3207.4,0.00371649]
[1768817191792,1.03967603,3208.2,3207.4,0.00371649]
[1768817194894,0.00289179,3208.2,3207.4,0.00371649]
[1768817195190,0.00289179,3208.2,3207.4,0.14253579]
[1768817200996,0.00289179,3208.2,3207.6,0.13626248]
[1768817201298,0.00467508,3208.5,3207.6,0.13626248]
[1768817202101,0.00856763,3208.5,3207.6,0.13626248]
[1768817203097,0.00856763,3208.5,3207.9,0.13626248]
[1768817203400,0.00289968,3208.5,3207.9,0.13626248]
[1768817204413,1.03678424,3209.4,3208.0,0.13626248]
[1768817204702,1.03678424,3209.2,3208.0,0.13626248]
[1768817205305,1.03943694,3209.2,3208.0,0.13626248]
[1768817206004,1.03678424,3209.0,3208.0,0.13626248]
[1768817206301,1.03678424,3208.8,3207.7,0.00467508]
[1768817208307,1.03678424,3208.2,3207.4,0.00371649]
[1768817208701,1.03678424,3208.4,3207.4,0.00371649]
[1768817208902,0.00467508,3208.6,3207.4,0.00371649]
[1768817209097,1.03678424,3208.3,3207.4,0.00371649]
[1768817211604,1.03678424,3207.9,3207.4,0.00371649]
[1768817211800,1.03678424,3207.9,3206.8,0.13626248]
[1768817212801,1.03678424,3207.9,3206.8,0.14011763]
[1768817213201,1.03678424,3207.3,3206.8,0.00385515]
[1768817213403,1.03678424,3207.3,3206.4,0.13867329]
[1768817213800,1.03678424,3207.3,3206.0,6.24267329]
[1768817214111,1.03678424,3207.3,3206.1,0.13867329]
[1768817214306,1.03678424,3207.3,3206.1,0.1408883]
[1768817214712,0.00467508,3207.0,3206.1,0.1408883]
[1768817218711,3.119,3208.6,3206.8,1.03678424]
[1768817218912,0.13235328,3208.8,3206.8,1.03678424]
[1768817218913,1.03678424,3208.1,3206.8,1.17545753]
[1768817219208,1.03678424,3208.1,3206.9,0.13867329]
[1768817220008,0.13235328,3208.8,3206.9,0.13867329]
[1768817220207,1.03678424,3208.0,3206.9,0.13867329]
[1768817220814,1.03678424,3208.3,3207.0,0.13867329]
[1768817222214,1.03678424,3208.1,3207.0,0.13867329]
[1768817223814,1.03678424,3208.2,3207.0,0.13867329]
[1768817225218,1.03678424,3208.4,3207.0,0.13867329]
[1768817225516,0.13235328,3208.8,3207.0,0.13867329]
[1768817225716,1.03678424,3208.3,3207.0,0.13867329]
[1768817226123,1.03678424,3208.6,3207.2,1.03678424]
[1768817226312,1.03678424,3208.8,3207.5,0.13867329]
[1768817226514,1.03678424,3209.0,3207.7,0.13867329]
[1768817226912,0.13235328,3209.3,3207.7,0.13867329]
[1768817227215,1.03678424,3209.0,3207.7,0.13867329]
[1768817227918,1.03678424,3209.0,3208.0,0.00467508]
[1768817228820,0.13235328,3209.3,3208.0,0.00467508]
[1768817230420,1.03726968,3209.1,3208.0,0.00467508]
[1768817231117,0.13500598,3209.2,3208.0,0.00467508]
[1768817232418,0.0026527,3209.2,3208.0,0.00467508]
[1768817232610,0.0026527,3209.2,3208.0,0.14334837]
[1768817234621,0.0026527,3209.2,3208.0,0.00467508]
[1768817246227,1.03726968,3209.0,3208.0,0.00467508]
[1768817246421,1.03726968,3209.0,3207.6,0.13867329]
[1768817246621,0.00467508,3208.9,3207.6,0.13867329]
[1768817255537,0.00467508,3208.9,3207.6,0.29465329]
[1768817255742,0.0026527,3209.2,3207.7,0.13865888]
[1768817256550,0.0026527,3209.2,3207.9,0.13865888]
[1768817256742,1.03726968,3210.1,3208.1,0.13865888]
[1768817257854,1.04044534,3210.1,3208.1,0.13865888]
[1768817260257,1.04044534,3210.1,3208.1,0.29460888]
[1768817260449,1.04044534,3210.1,3208.2,0.13553465]
[1768817264458,0.00317566,3210.1,3208.3,0.13553465]
[1768817268659,0.00317566,3210.1,3208.9,0.00467508]
[1768817268861,0.00317566,3210.1,3208.9,0.00743196]
[1768817269058,0.00317566,3210.1,3208.9,0.14296661]
[1768817270562,0.14284486,3210.1,3208.9,0.00743196]
[1768817270747,0.00317566,3210.1,3208.9,0.00743196]
[1768817270954,0.00317566,3210.1,3208.9,0.14296661]
[1768817284175,0.14394217,3210.1,3208.9,0.00743196]
[1768817285679,1.03726968,3209.8,3208.9,0.00743196]
[1768817291085,1.03697559,3209.5,3208.9,0.00743196]
[1768817295388,1.03697559,3209.3,3208.1,0.13590583]
[1768817296291,1.03697559,3209.1,3208.1,0.13590583]
[1768817296487,1.03697559,3209.1,3208.1,0.00320042]
[1768817298392,1.03697559,3209.4,3208.1,0.13910625]
[1768817298682,0.00467508,3209.5,3208.3,1.03697559]
[1768817298888,0.00467508,3209.5,3208.4,0.13590583]
[1768817301995,1.03697559,3209.4,3208.4,0.13590583]
[1768817303198,1.03697559,3209.4,3208.1,0.00320042]
[1768817304498,1.03697559,3209.1,3208.1,0.00320042]
[1768817307102,1.03697559,3208.8,3208.1,0.00320042]
[1768817308299,1.03697559,3208.5,3207.3,0.13629396]
[1768817308704,1.03697559,3208.8,3207.3,0.13629396]
[1768817309395,1.03697559,3208.8,3207.3,0.13945205]
[1768817309804,1.03697559,3208.8,3207.4,0.13629396]
[1768817312508,1.03697559,3208.8,3207.4,1.17326955]
[1768817312804,1.03697559,3208.8,3207.5,0.13629396]
[1768817313393,1.03697559,3209.0,3207.7,0.13629396]
[1768817316709,0.13404968,3208.9,3207.3,0.15914809]
[1768817316902,1.03697559,3208.2,3207.3,0.00315809]
[1768817317101,1.03697559,3208.5,3207.3,0.00315809]
[1768817318907,0.13404968,3208.4,3207.3,0.00315809]
[1768817319116,1.03697559,3208.1,3207.3,0.00315809]
[1768817320117,1.17451656,3208.3,3207.3,0.00315809]
[1768817325817,0.15593,3208.7,3207.3,0.00315809]
[1768817326014,1.03697559,3208.4,3207.3,0.00315809]
[1768817328720,0.29347097,3208.7,3207.3,0.00315809]
[1768817329020,1.03697559,3208.5,3207.3,0.00315809]
[1768817329910,1.17451656,3208.9,3207.3,1.04013368]
[1768817330222,1.03697559,3208.7,3207.3,1.04013368]
[1768817333118,0.13754097,3208.9,3207.3,1.17428005]
[1768817333325,1.17451656,3208.9,3207.3,1.17428005]
[1768817334123,1.17451656,3208.9,3207.3,0.13730446]
[1768817334332,1.17451656,3208.9,3207.3,1.17428005]
[1768817334518,1.03697559,3208.7,3207.3,1.17428005]
[1768817340823,0.13754097,3208.9,3207.4,0.13414637]
[1768817341820,1.17451656,3208.9,3207.4,0.13414637]
[1768817342026,0.28888891,3209.2,3207.4,0.13414637]
[1768817342329,1.03697559,3208.9,3207.4,0.13414637]
[1768817348838,1.1699645,3208.9,3207.4,0.13414637]
[1768817350940,0.13298891,3208.9,3207.4,0.13414637]
[1768817357455,1.17049483,3208.8,3207.3,0.00315809]
[1768817357656,0.13298891,3208.7,3207.3,0.00315809]
[1768817360143,1.17049483,3208.4,3207.3,0.00315809]
[1768817361055,0.13298891,3208.4,3207.3,0.00315809]
[1768817378667,0.14339098,3208.8,3207.3,0.00315809]
[1768817378864,0.14339098,3208.8,3207.3,0.13555171]
[1768817380569,0.1412867,3209.3,3207.6,0.14116763]
[1768817381173,0.15589,3209.4,3207.6,0.14116763]
[1768817385567,0.2971767,3209.4,3207.6,0.14116763]
[1768817385767,0.2971767,3209.4,3207.3,0.15914809]
[1768817385768,0.1412867,3209.0,3207.3,0.00315809]
[1768817385974,0.1412867,3208.6,3207.3,0.00315809]
[1768817401088,1.90092,3208.7,3207.3,0.00315809]
[1768817401382,0.15592,3208.7,3207.3,0.00315809]
[1768817401584,0.15592,3208.7,3207.3,0.13562416]
[1768817403485,0.1392778,3208.6,3207.3,0.00315809]
[1768817404586,1.17678372,3208.6,3207.3,0.00315809]
[1768817404881,0.1392778,3208.5,3207.3,0.00315809]
[1768817408984,1.03750592,3208.6,3207.3,0.00315809]
[1768817409192,0.15592,3208.7,3207.3,0.00315809]
[1768817409799,0.15592,3208.7,3207.3,0.13562416]
[1768817412899,1.03757917,3208.6,3207.3,0.13562416]
[1768817416607,0.15592,3208.7,3207.3,0.13562416]
[1768817416901,1.03757917,3209.2,3207.6,0.13246607]
[1768817417415,1.03757917,3209.2,3207.8,1.17004524]
[1768817417816,1.03757917,3209.2,3207.8,0.13246607]
[1768817418813,1.90089,3209.3,3207.8,0.13246607]
[1768817419020,1.03757917,3209.0,3207.8,0.13246607]
[1768817420016,0.15589,3209.3,3207.8,0.13246607]
[1768817420217,0.15589,3209.3,3208.0,0.13246607]
[1768817420218,1.03757917,3209.3,3208.0,0.13246607]
[1768817422820,1.03757917,3209.1,3208.0,0.13246607]
[1768817427723,1.03757917,3208.6,3207.6,0.13388842]
[1768817428621,1.03757917,3208.9,3207.6,0.13388842]
[1768817430323,0.13118061,3209.1,3207.6,0.13388842]
[1768817430619,1.03757917,3209.0,3207.6,0.13388842]
[1768817432423,0.15589,3209.4,3207.6,0.13388842]
[1768817432625,1.03757917,3209.1,3207.6,0.13388842]
[1768817436327,1.03757917,3209.1,3207.6,1.17146759]
[1768817438728,1.03757917,3209.1,3207.6,0.13388842]
[1768817440029,1.1773498,3209.1,3207.6,0.13388842]
[1768817440931,1.03757917,3209.1,3207.6,0.13388842]
[1768817441726,1.19346917,3209.4,3208.0,1.17582049]
[1768817441932,0.00467508,3209.5,3208.3,1.03757917]
[1768817444340,1.04225425,3209.5,3208.1,1.17582049]
[1768817444635,1.04225425,3209.5,3208.2,0.13824132]
[1768817449838,1.03757917,3209.3,3208.2,0.13824132]
[1768817453340,1.04225425,3209.5,3208.2,0.13824132]
[1768817463762,0.00467508,3209.5,3208.2,0.13824132]
[1768817464053,1.04225425,3209.5,3208.2,0.13824132]
[1768817465263,0.00467508,3209.5,3208.2,0.13824132]
[1768817465559,0.00467508,3209.5,3208.4,0.1326284]
[1768817469665,0.00317566,3210.1,3208.7,0.1326284]
[1768817469864,0.00317566,3210.1,3209.3,1.17020757]
[1768817470265,0.00317566,3210.1,3208.8,1.03757917]
[1768817470472,1.04075483,3210.1,3208.9,0.1326284]